lending/lending_fUSD_20240603
["ID","MTS","AMOUNT","RATE_DAILY","PERIOD"]
[328437286,1717385448028,-500.0,0.00030683,4]
[328437288,1717385448037,-4690.46,0.00030683,4]
[328437290,1717385448047,-928.38,0.00030683,4]
[328437292,1717385448055,-500.0,0.00030683,4]
[328437294,1717385448064,-500.0,0.00030683,4]
[328437296,1717385448073,-500.0,0.00030683,4]
[328437298,1717385448082,-274.44165416,0.00030683,4]
[328437299,1717385448091,-500.0,0.00030683,4]
[328437301,1717385448101,-500.0,0.00030683,4]
[328437303,1717385448110,-6767.35,0.00030683,4]
[328437305,1717385448118,-500.0,0.00030683,4]
[328437307,1717385448127,-560.48,0.00030683,4]
[328437309,1717385448136,-500.0,0.00030684,4]
[328437311,1717385448146,-500.0,0.00030684,4]
[328437313,1717385448154,-426.68619261,0.00030684,4]
[328437315,1717385448164,-156.63232353,0.00030693,7]
[328437317,1717385448173,-24567.28,0.00030699,2]
[328437319,1717385448182,-250000.0,0.000307,2]
[328437321,1717385448191,-159.23817175,0.00030702,7]
[328437323,1717385448200,-49.98735153,0.00030717,4]
[328437326,1717385448213,-1754.16264847,0.00030717,4]
[328437328,1717385448222,-1952.08,0.00030717,4]
[328437329,1717385448231,-333.2634863,0.00030717,4]
[328437332,1717385448243,-166.7365137,0.00030717,4]
[328437334,1717385448255,-500.0,0.00030717,4]
[328437336,1717385448264,-869.59,0.00030717,4]
[328437338,1717385448274,-500.0,0.00030717,4]
[328437340,1717385448283,-802.00107028,0.00030717,4]
[328437342,1717385448294,-707.88892972,0.00030717,4]
[328437344,1717385448303,-685.6140997,0.00030717,4]
[328437346,1717385448315,-316.3859003,0.00030717,4]
[328437348,1717385448324,-227.99580628,0.00030717,4]
[328437350,1717385448335,-668.63419372,0.00030717,4]
[328437352,1717385448344,-325.69754483,0.00030717,4]
[328437354,1717385448356,-374.28245517,0.00030717,4]
[328437356,1717385448365,-821.01,0.00030717,4]
[328437358,1717385448374,-518.91,0.00030717,4]
[328437360,1717385448383,-500.0,0.00030717,4]
[328437362,1717385448392,-1598.25,0.00030717,4]
[328437364,1717385448401,-500.0,0.00030717,4]
[328437366,1717385448410,-250.11291919,0.00030717,4]
[328437380,1717385448529,-1770.000003,0.00030717,4]
[328437382,1717385448541,-51.01707781,0.00030717,4]
[328437384,1717385448550,-2383.53,0.00030717,4]
[328437386,1717385448560,-1216.02,0.00030717,4]
[328437388,1717385448569,-613.16,0.00030717,4]
[328437390,1717385448578,-1225.37,0.00030717,4]
[328437392,1717385448587,-823.4,0.00030717,4]
[328437394,1717385448595,-1166.77935313,0.00030717,4]
[328437425,1717385448882,-428.64064687,0.00030717,4]
[328437427,1717385448891,-997.47,0.00030717,4]
[328437429,1717385448901,-656.86,0.00030717,4]
[328437432,1717385448910,-1178.49,0.00030717,4]
[328437434,1717385448920,-1087.52,0.00030717,4]
[328437436,1717385448929,-729.62,0.00030717,4]
[328437438,1717385448939,-500.0,0.00030717,4]
[328437440,1717385448949,-2036.32,0.00030717,4]
[328437442,1717385448958,-500.0,0.00030717,4]
[328437444,1717385448968,-500.0,0.00030717,4]
[328437446,1717385448978,-500.0,0.00030717,4]
[328437448,1717385448987,-1167.72,0.00030717,4]
[328437450,1717385448996,-1685.67,0.00030717,4]
[328437452,1717385449006,-759.36,0.00030717,4]
[328437454,1717385449015,-500.0,0.00030717,4]
[328437456,1717385449024,-725.95669352,0.00030717,4]
[328437460,1717385449055,-328.04999985,0.00029437,4]
[328437463,1717385449067,-171.95000015,0.00029437,4]
[328437465,1717385449076,-500.0,0.00029711,4]
[328437467,1717385449085,-403.88867597,0.00029985,4]
[328437469,1717385449097,-96.11132403,0.00029985,4]
[328437471,1717385449107,-75.03330648,0.00030717,4]
[328437473,1717385449117,-2013.34,0.00030717,4]
[328437475,1717385449126,-1085.41,0.00030717,4]
[328437477,1717385449135,-3034.21,0.00030717,4]
[328437478,1717385449145,-1287.57,0.00030717,4]
[328437479,1717385449154,-5652.68,0.00030717,4]
[328437480,1717385449163,-597.45,0.00030717,4]
[328437481,1717385449172,-500.0,0.00030717,4]
[328437482,1717385449181,-2072.81,0.00030717,4]
[328437483,1717385449190,-500.0,0.00030717,4]
[328437484,1717385449200,-719.35,0.00030717,4]
[328437485,1717385449210,-500.0,0.00030717,4]
[328437486,1717385449219,-274.47216425,0.00030717,4]
[328437487,1717385449229,-529.51,0.00030717,4]
[328437488,1717385449239,-7205.7,0.00030717,4]
[328437489,1717385449252,-689.01,0.00030717,4]
[328437490,1717385449261,-180.48841235,0.00030717,4]
[328437491,1717385449270,-158.26123951,0.00030725,7]
[328437492,1717385449279,-7453.82,0.00030745,5]
[328437493,1717385449290,-12281.15328014,0.00030797,15]
[328437495,1717385449303,-13804.42910163,0.00030797,15]
[328437497,1717385449312,-157.56913684,0.00030807,4]
[328437499,1717385449323,-500.0,0.00030807,4]
[328437501,1717385449333,-500.0,0.00030807,4]
[328437503,1717385449343,-500.0,0.00030807,4]
[328437505,1717385449352,-500.0,0.00030807,4]
[328437507,1717385449362,-500.0,0.00030807,4]
[328437509,1717385449371,-500.0,0.00030807,4]
[328437511,1717385449381,-500.0,0.00030807,4]
[328437513,1717385449390,-500.0,0.00030807,4]
[328437515,1717385449400,-500.0,0.00030807,4]
[328437517,1717385449410,-500.0,0.00030807,4]
[328437519,1717385449420,-191.07859147,0.00030807,4]
[328437521,1717385449430,-500.0,0.00030807,4]
[328437523,1717385449439,-500.0,0.00030807,4]
[328437525,1717385449449,-500.0,0.00030807,4]
[328437527,1717385449459,-500.0,0.00030807,4]
[328437529,1717385449468,-500.0,0.00030807,4]
[328437531,1717385449479,-500.0,0.00030807,4]
[328437533,1717385449488,-500.0,0.00030807,4]
[328437535,1717385449497,-500.0,0.00030807,4]
[328437537,1717385449507,-500.0,0.00030807,4]
[328437539,1717385449516,-500.0,0.00030807,4]
[328437541,1717385449526,-1266.2,0.00030807,4]
[328437543,1717385449536,-956.8,0.00030807,4]
[328437545,1717385449545,-1011.66,0.00030807,4]
[328437547,1717385449555,-500.0,0.00030807,4]
[328437549,1717385449565,-500.0,0.00030807,4]
[328437551,1717385449574,-502.25,0.00030807,4]
[328437554,1717385449584,-500.0,0.00030807,4]
[328437556,1717385449594,-500.0,0.00030807,4]
[328437558,1717385449603,-3654.7,0.00030807,4]
[328437560,1717385449612,-1231.62,0.00030807,4]
[328437562,1717385449621,-879.65,0.00030807,4]
[328437564,1717385449630,-500.0,0.00030807,4]
[328437566,1717385449639,-2136.91,0.00030807,4]
[328437568,1717385449649,-1097.51,0.00030807,4]
[328437570,1717385449658,-500.0,0.00030807,4]
[328437572,1717385449667,-500.0,0.00030807,4]
[328437574,1717385449676,-2717.63,0.00030807,4]
[328437576,1717385449685,-808.15,0.00030807,4]
[328437577,1717385449695,-500.0,0.00030807,4]
[328437580,1717385449704,-500.0,0.00030807,4]
[328437582,1717385449714,-750.52,0.00030807,4]
[328437584,1717385449723,-500.0,0.00030807,4]
[328437586,1717385449733,-1479.01,0.00030807,4]
[328437588,1717385449742,-1131.87,0.00030807,4]
[328437590,1717385449752,-826.71,0.00030807,4]
[328437592,1717385449761,-985.15,0.00030807,4]
[328437594,1717385449771,-500.0,0.00030807,4]
[328437596,1717385449780,-1332.4,0.00030807,4]
[328437598,1717385449789,-500.0,0.00030807,4]
[328437600,1717385449798,-778.6,0.00030807,4]
[328437602,1717385449808,-500.0,0.00030807,4]
[328437604,1717385449817,-587.89,0.00030807,4]
[328437606,1717385449827,-606.2,0.00030807,4]
[328437608,1717385449836,-1036.18,0.00030807,4]
[328437610,1717385449846,-340.87,0.00030807,4]
[328437612,1717385449855,-1297.88,0.00030807,4]
[328437614,1717385449864,-500.0,0.00030807,4]
[328437616,1717385449874,-500.0,0.00030807,4]
[328437618,1717385449883,-500.0,0.00030807,4]
[328437620,1717385449892,-5195.62,0.00030807,4]
[328437622,1717385449902,-500.0,0.00030807,2]
[328437624,1717385449912,-500.0,0.00030807,4]
[328437626,1717385449922,-500.0,0.00030807,4]
[328437628,1717385449931,-500.0,0.00030807,4]
[328437630,1717385449941,-1530.8,0.00030807,4]
[328437632,1717385449950,-926.48,0.00030807,4]
[328437634,1717385449959,-557.86,0.00030807,4]
[328437636,1717385449969,-751.97,0.00030807,4]
[328437639,1717385449980,-500.0,0.00030807,4]
[328437641,1717385449990,-827.61647032,0.00030807,4]
[328437643,1717385450003,-127.56352968,0.00030807,4]
[328437645,1717385450012,-500.0,0.00030807,4]
[328437647,1717385450022,-2458.89,0.00030807,4]
[328437649,1717385450031,-938.47,0.00030807,4]
[328437651,1717385450041,-84.16943625,0.00030807,4]
[328437661,1717385450128,-500.0,0.00030259,4]
[328437664,1717385450138,-532.74056375,0.00030807,4]
[328437666,1717385450147,-500.0,0.00030807,4]
[328437668,1717385450156,-500.0,0.00030807,4]
[328437670,1717385450166,-500.0,0.00030807,4]
[328437672,1717385450175,-198.09215341,0.00030807,4]
[328437674,1717385450186,-672.63784659,0.00030807,4]
[328437676,1717385450196,-119.52237586,0.00030807,4]
[328437687,1717385450289,-500.0,0.00030533,4]
[328437689,1717385450298,-434.46762414,0.00030807,4]
[328437691,1717385450308,-659.24,0.00030807,4]
[328437693,1717385450318,-1004.46,0.00030807,4]
[328437695,1717385450327,-500.0,0.00030807,4]
[328437697,1717385450337,-500.0,0.00030807,4]
[328437699,1717385450348,-621.14,0.00030807,4]
[328437701,1717385450357,-740.48,0.00030807,4]
[328437703,1717385450367,-500.0,0.00030807,4]
[328437705,1717385450377,-500.0,0.00030807,4]
[328437707,1717385450387,-157.73908281,0.00030808,7]
[328437709,1717385450397,-419.55060319,0.00030814,2]
[328437711,1717385450407,-154.20396716,0.00030827,7]
[328437714,1717385450417,-154.38688122,0.00030846,2]
[328437716,1717385450426,-884.09049159,0.00030846,2]
[328437718,1717385450436,-6373.53549707,0.00030852,15]
[328437719,1717385450445,-922.22458762,0.00030855,2]
[328437722,1717385450455,-45449.10608716,0.00030858,2]
[328437724,1717385450467,-14884.14530118,0.00030858,2]
[328437726,1717385450480,-426.41169427,0.00030858,2]
[328437728,1717385450491,-2228.67437954,0.00030858,2]
[328437732,1717385450523,-1170.91026707,0.00030858,2]
[328437733,1717385478087,2659.52545,0.000308,30]
[328437734,1717385478503,2659.52545,0.000308,30]
[328437739,1717386562154,-567.85647538,0.00017215,2]
[328437745,1717386632164,-942.08096292,0.00017214,2]
[328437747,1717386632221,-957.43240664,0.00017214,2]
[328437748,1717386632232,-581.06831524,0.00017215,2]
[328437749,1717386632245,-132.82043621,0.00017225,2]
[328437750,1717386632428,-292.13104905,0.00017225,2]
[328437751,1717386632450,-500.0,0.00017225,2]
[328437752,1717386632466,-722.0,0.00017225,2]
[328437753,1717386632510,-83296.5906048,0.00017225,2]
[328437754,1717386632521,-363.7815997,0.0002,2]
[328437755,1717386632531,-150.99,0.0002,2]
[328437756,1717386632542,-6296.09669221,0.0002,2]
[328437757,1717386632569,-663.99313306,0.0002,2]
[328437758,1717386632581,-266.27999998,0.0002,2]
[328437790,1717386638210,-294.55017475,0.0002,2]
[328437791,1717386638220,-283.61,0.0002,2]
[328437792,1717386638229,-587.33,0.0002,2]
[328437793,1717386638238,-226.51830624,0.000201,2]
[328437794,1717386638249,-114.12124502,0.00024384,2]
[328437795,1717386638261,-44.33875498,0.00024384,2]
[328437796,1717386638271,-375.79,0.00024384,2]
[328437797,1717386638280,-455.59,0.00024384,2]
[328437798,1717386638289,-149.70858132,0.00024384,2]
[328437799,1717386638301,-350.28141868,0.00024384,2]
[328437800,1717386638310,-634.5,0.00024395,2]
[328437801,1717386638320,-150.0,0.00024603,2]
[328437802,1717386638329,-548.76898063,0.0002464,2]
[328437803,1717386638339,-155.0,0.00025,2]
[328437804,1717386638348,-250.0,0.00026195,2]
[328437805,1717386638358,-250.0,0.00026253,2]
[328437806,1717386638367,-2378.74,0.00026313,2]
[328437807,1717386638377,-899.57870233,0.00026614,2]
[328437808,1717386638388,-1247.56129767,0.00026614,2]
[328437809,1717386638397,-251.39600653,0.00026659,2]
[328437810,1717386638412,-383.10399347,0.00026659,2]
[328437811,1717386638422,-406.88,0.00026849,2]
[328437812,1717386638431,-1943.83229728,0.00026859,3]
[328437813,1717386638443,-56.16770272,0.00026859,3]
[328437814,1717386638452,-591.93407702,0.00026859,2]
[328437815,1717386638467,-408.06592298,0.00026859,2]
[328437816,1717386638476,-2391.23409692,0.00026888,2]
[328437817,1717386638488,-2000.0,0.00026888,2]
[328437818,1717386638501,-1911.879905,0.00026888,2]
[328437819,1717386638512,-11089.145082,0.00026888,2]
[328437820,1717386638523,-2000.0,0.00026888,2]
[328437821,1717386638535,-3874.28091608,0.00026888,2]
[328437822,1717386638545,-250.0,0.00026894,2]
[328437823,1717386638554,-172.96,0.00026898,2]
[328437824,1717386638564,-3202.99062507,0.0002692,2]
[328437825,1717386638573,-3331.56346617,0.0002692,2]
[328437835,1717386640836,-748.45787279,0.0002692,2]
[328437836,1717386640848,-1140.96863018,0.0002692,2]
[328437837,1717386640859,-7821.80122179,0.0002692,2]
[328437838,1717386640869,-4024.29763669,0.00027,2]
[328437839,1717386640879,-30690.49314053,0.00027,2]
[328437840,1717386640888,-166.27,0.00027044,2]
[328437841,1717386640898,-3450.83,0.00027123,2]
[328437842,1717386640908,-166.27,0.00027246,2]
[328437843,1717386640918,-166.54,0.00027255,2]
[328437844,1717386640927,-806.64368738,0.0002739,2]
[328437845,1717386640937,-166.27,0.00027447,2]
[328437846,1717386640947,-3202.99062506,0.00027618,2]
[328437847,1717386640957,-13042.79119088,0.00027618,2]
[328437848,1717386640966,-166.27,0.00027648,2]
[328437849,1717386640976,-166.27,0.0002785,2]
[328437850,1717386640985,-166.27,0.00028051,2]
[328437851,1717386640994,-167.0,0.00028195,2]
[328437852,1717386641003,-166.27,0.00028252,2]
[328437853,1717386641013,-163.56,0.00028267,2]
[328437854,1717386641022,-215.12634527,0.00028315,2]
[328437855,1717386641031,-3202.99062506,0.00028316,2]
[328437856,1717386641040,-13042.79119088,0.00028316,2]
[328437857,1717386641049,-166.27,0.00028453,2]
[328437858,1717386641058,-640.0,0.000285,3]
[328437859,1717386641068,-2500.0,0.00028773,2]
[328437860,1717386641077,-251.47903097,0.00028773,2]
[328437861,1717386641086,-180.0,0.00028792,2]
[328437862,1717386641095,-237.7,0.00028862,2]
[328437863,1717386641104,-334.04974451,0.00028869,2]
[328437864,1717386641113,-500.0,0.00028871,4]
[328437865,1717386641122,-500.0,0.00028871,4]
[328437866,1717386641132,-1688.34,0.00028871,4]
[328437867,1717386641141,-583.24,0.00028871,4]
[328437868,1717386641150,-706.54,0.00028871,4]
[328437869,1717386641159,-516.81,0.00028871,4]
[328437870,1717386641168,-500.0,0.00028871,4]
[328437871,1717386641177,-500.0,0.00028871,4]
[328437872,1717386641186,-2149.24,0.00028871,4]
[328437873,1717386641195,-500.0,0.00028871,4]
[328437874,1717386641204,-509.54,0.00028871,4]
[328437875,1717386641213,-500.0,0.00028871,4]
[328437876,1717386641222,-500.0,0.00028871,4]
[328437877,1717386641231,-500.0,0.00028871,4]
[328437878,1717386641240,-12424.27,0.00028871,4]
[328437879,1717386641250,-500.0,0.00028871,4]
[328437880,1717386641259,-377.21529174,0.00028872,4]
[328437881,1717386641268,-500.0,0.00028872,4]
[328437882,1717386641278,-514.55191338,0.00028872,4]
[328437883,1717386641287,-500.0,0.00028872,4]
[328437884,1717386641296,-500.0,0.00028872,4]
[328437885,1717386641305,-624.76271679,0.00028872,4]
[328437886,1717386641315,-640.9526831,0.00028872,4]
[328437887,1717386641325,-512.27311254,0.00028872,4]
[328437888,1717386641335,-1277.94,0.00028872,4]
[328437889,1717386641344,-500.0,0.00028872,4]
[328437890,1717386641353,-510.28844576,0.00028872,4]
[328437891,1717386641362,-519.3821139,0.00028872,4]
[328437892,1717386641371,-512.22459223,0.00028872,4]
[328437893,1717386641381,-509.9631587,0.00028872,4]
[328437894,1717386641391,-531.29093614,0.00028872,4]
[328437895,1717386641401,-1382.73,0.00028872,4]
[328437896,1717386641410,-500.0,0.00028872,4]
[328437897,1717386641421,-518.42152897,0.00028872,4]
[328437898,1717386641430,-244.87816144,0.00028872,4]
[328437899,1717386641440,-500.0,0.00028872,4]
[328437900,1717386641449,-500.0,0.00028872,4]
[328437901,1717386641458,-500.0,0.00028872,4]
[328437902,1717386641468,-500.0,0.00028872,4]
[328437903,1717386641478,-615.96,0.00028872,4]
[328437904,1717386641487,-709.75,0.00028872,4]
[328437905,1717386641496,-272.71980804,0.00028872,4]
[328437906,1717386641506,-1069.5,0.00028872,4]
[328437907,1717386641515,-500.0,0.00028872,4]
[328437908,1717386641524,-692.37,0.00028872,4]
[328437909,1717386641532,-635.12,0.00028872,4]
[328437910,1717386641542,-1132.1,0.00028872,4]
[328437911,1717386641551,-500.0,0.00028872,4]
[328437912,1717386641561,-500.0,0.00028872,4]
[328437913,1717386641571,-861.34,0.00028872,4]
[328437914,1717386641579,-361.51791584,0.00028872,4]
[328437915,1717386641591,-138.48208416,0.00028872,4]
[328437916,1717386641601,-181.35824102,0.00028872,4]
[328437925,1717386643315,-500.0,0.00028871,4]
[328437926,1717386643325,-425.50594997,0.00028872,4]
[328437927,1717386643337,-427.149998,0.00028872,4]
[328437928,1717386643348,-433.03581101,0.00028872,4]
[328437929,1717386643356,-867.98,0.00028872,4]
[328437930,1717386643366,-201.79998173,0.00028872,4]
[328437931,1717386643379,-825.30616915,0.00028872,4]
[328437932,1717386643422,-102.98384912,0.00028872,4]
[328437933,1717386643432,-511.28424326,0.00028872,4]
[328437934,1717386643441,-500.0,0.00028872,4]
[328437935,1717386643451,-834.76,0.00028872,4]
[328437936,1717386643460,-500.0,0.00028872,4]
[328437937,1717386643469,-500.0,0.00028872,4]
[328437938,1717386643478,-500.0,0.00028872,4]
[328437939,1717386643487,-827.14,0.00028872,4]
[328437940,1717386643497,-1068.7049769,0.00028872,4]
[328437943,1717386646168,-125.3150231,0.00028872,4]
[328437944,1717386646177,-770.32,0.00028872,4]
[328437945,1717386646186,-567.37,0.00028872,4]
[328437946,1717386646195,-1442.39,0.00028872,4]
[328437947,1717386646204,-1426.11,0.00028872,4]
[328437948,1717386646213,-191.25614726,0.00028872,4]
[328437949,1717386646867,-581.0,0.00028872,4]
[328437950,1717386646879,-139.77385274,0.00028872,4]
[328437951,1717386646888,-4003.98,0.00028872,4]
[328437952,1717386646897,-537.88,0.00028872,4]
[328437953,1717386646906,-1468.24,0.00028872,4]
[328437954,1717386646915,-500.0,0.00028872,4]
[328437955,1717386646924,-500.0,0.00028872,4]
[328437956,1717386646933,-500.0,0.00028872,4]
[328437957,1717386646942,-500.0,0.00028872,4]
[328437958,1717386646951,-1707.41,0.00028872,4]
[328437959,1717386646960,-3328.18654376,0.00028872,4]
[328437960,1717386646972,-1775.85345624,0.00028872,4]
[328437961,1717386646981,-500.0,0.00028872,4]
[328437962,1717386646990,-4820.11440419,0.00028873,2]
[328437963,1717386647421,-16104.19889294,0.00028873,2]
[328437964,1717386647434,-10626.67261,0.00028873,2]
[328437965,1717386647446,-14051.20879287,0.00028873,2]
[328437966,1717386647455,-1193.56432713,0.00028873,2]
[328437967,1717386647467,-278.97054483,0.00028873,2]
[328437968,1717386647478,-2089.86470127,0.00028873,2]
[328437969,1717386647489,-1812.17,0.00028873,2]
[328437970,1717386647501,-6407.4136246,0.00028873,2]
[328437971,1717387255680,221.0,0.00031,30]
[328437992,1717387764162,-155.31918261,0.00017113,2]
[328437993,1717387764184,-1803.93057379,0.00017214,2]
[328437994,1717387764207,-199.38036039,0.00017215,2]
[328437995,1717387764229,-2.94478321,0.00017215,2]
[328438003,1717387831568,-200.0,0.00017214,2]
[328438004,1717387831579,-87.89476307,0.00017214,2]
[328438005,1717387831591,-428.42015516,0.00017214,2]
[328438006,1717387831602,-2941.53354277,0.00017214,2]
[328438007,1717387831621,-5677.72402124,0.00017214,2]
[328438008,1717387831631,-129.62231872,0.00017215,2]
[328438009,1717387831669,-28.7163728,0.00017215,2]
[328438010,1717387831678,-264.72175593,0.00017259,2]
[328438011,1717387831690,-1475.84735643,0.00017259,2]
[328438012,1717387831699,-150.0,0.0001945,2]
[328438013,1717387831709,-150.0,0.0001945,2]
[328438014,1717387831718,-273.58034728,0.00019726,2]
[328438015,1717387837348,-226.40965272,0.00019726,2]
[328438017,1717387837359,-158.88144297,0.0002,2]
[328438019,1717387837369,-363.7815997,0.0002,2]
[328438021,1717387837379,-226.51830624,0.000201,2]
[328438023,1717387837389,-48.41532533,0.00021392,2]
[328438024,1717387837406,-911.48925428,0.00021392,2]
[328438025,1717387837419,-40.08542039,0.00021392,2]
[328438026,1717387837429,-150.99,0.00021392,2]
[328438027,1717387837439,-169.43532533,0.00021392,2]
[328438028,1717387837568,-9830.55467467,0.00021392,2]
[328438029,1717387837579,-580.35,0.0002284,2]
[328438030,1717387837589,-156.14,0.00024384,2]
[328438031,1717387837600,-153.66,0.00024384,2]
[328438032,1717387837610,-1585.15,0.00024727,2]
[328438033,1717387837620,-548.76898063,0.000248,2]
[328438034,1717387837631,-1250.0,0.00025,2]
[328438035,1717387837641,-155.0,0.00025053,2]
[328438036,1717387837652,-1000.0,0.00025054,2]
[328438037,1717387837663,-250.0,0.00025062,2]
[328438038,1717387837673,-580.35,0.00025103,2]
[328438039,1717387837684,-1073.57,0.00025252,2]
[328438040,1717387837694,-250.0,0.00025314,2]
[328438041,1717387837709,-339.06,0.00025743,2]
[328438042,1717387837719,-14542.66167122,0.00026737,2]
[328438043,1717387837731,-1887.24352,0.00026737,2]
[328438045,1717387837744,-3689.090006,0.00026737,2]
[328438047,1717387837757,-71.79380278,0.00026737,2]
[328438048,1717387837769,-4024.29763669,0.00027,2]
[328438049,1717387837779,-580.35,0.00027367,2]
[328438050,1717387837790,-1585.15,0.00027467,2]
[328438051,1717387837800,-1420.68768018,0.00027519,2]
[328438052,1717387837811,-1000.0,0.00028186,2]
[328438053,1717387837822,-155.0,0.00028388,2]
[328438054,1717387837833,-248.579485,0.00028493,14]
[328438055,1717387837844,-257.5523,0.00028672,2]
[328438056,1717387837854,-721.2448,0.00028672,2]
[328438057,1717387837865,-211.2533,0.00028673,2]
[328438058,1717387837875,-480.5729,0.00028673,2]
[328438059,1717387837886,-9129.95383367,0.00028673,2]
[328438060,1717387837896,-220.04415209,0.00028673,2]
[328438062,1717387837906,-334.04974451,0.00028762,2]
[328438063,1717387837917,-213.93,0.00028763,2]
[328438065,1717387837927,-213.93,0.00028763,2]
[328438066,1717387837937,-1802.07754676,0.00028771,2]
[328438067,1717387837947,-500.0,0.00028772,2]
[328438068,1717387837958,-217.7629656,0.00028772,2]
[328438069,1717387837968,-500.0,0.00028772,4]
[328438070,1717387837978,-500.0,0.00028772,4]
[328438071,1717387837988,-548.3181629,0.00028772,4]
[328438072,1717387837998,-500.0,0.00028772,4]
[328438073,1717387838008,-520.80653118,0.00028772,4]
[328438074,1717387838019,-500.0,0.00028772,4]
[328438075,1717387838029,-500.0,0.00028772,4]
[328438076,1717387838040,-500.0,0.00028772,4]
[328438077,1717387838054,-500.0,0.00028772,4]
[328438078,1717387838065,-500.0,0.00028772,4]
[328438079,1717387838075,-500.0,0.00028772,4]
[328438080,1717387838086,-22.64515864,0.00028772,4]
[328438083,1717387839867,-477.35484136,0.00028772,4]
[328438084,1717387839877,-278.67984703,0.00028772,4]
[328438085,1717387839890,-221.32015297,0.00028772,4]
[328438086,1717387839900,-500.0,0.00028772,4]
[328438087,1717387839910,-500.0,0.00028772,4]
[328438088,1717387839920,-150.0,0.00028772,4]
[328438089,1717387839930,-500.0,0.00028772,4]
[328438090,1717387839940,-500.0,0.00028772,4]
[328438091,1717387839950,-500.0,0.00028772,4]
[328438092,1717387839960,-502.88594687,0.00028772,4]
[328438093,1717387839970,-475.28639584,0.00028772,4]
[328438094,1717387839980,-500.0,0.00028772,4]
[328438095,1717387839991,-500.0,0.00028772,4]
[328438096,1717387840001,-500.0,0.00028772,4]
[328438097,1717387840011,-500.0,0.00028772,4]
[328438098,1717387840021,-327.72257515,0.00028772,4]
[328438099,1717387840031,-500.0,0.00028772,4]
[328438100,1717387840041,-219.75130788,0.00028772,4]
[328438101,1717387840054,-544.7585553,0.00028772,4]
[328438102,1717387840064,-514.56559115,0.00028772,4]
[328438103,1717387840075,-574.19997012,0.00028772,4]
[328438104,1717387840086,-554.08997998,0.00028772,4]
[328438105,1717387840096,-500.0,0.00028772,4]
[328438106,1717387840106,-500.0,0.00028772,4]
[328438107,1717387840117,-500.0,0.00028772,4]
[328438108,1717387840127,-500.0,0.00028772,4]
[328438109,1717387840137,-500.0,0.00028772,4]
[328438110,1717387840147,-500.0,0.00028772,4]
[328438111,1717387840157,-500.0,0.00028772,4]
[328438112,1717387840166,-500.0,0.00028772,4]
[328438113,1717387840176,-500.0,0.00028772,4]
[328438114,1717387840186,-500.0,0.00028772,4]
[328438115,1717387840196,-500.0,0.00028772,4]
[328438116,1717387840206,-503.8890389,0.00028772,4]
[328438117,1717387840216,-520.44771036,0.00028772,4]
[328438118,1717387840225,-500.0,0.00028772,4]
[328438119,1717387840235,-500.0,0.00028772,4]
[328438120,1717387840245,-500.0,0.00028772,4]
[328438121,1717387840255,-500.0,0.00028772,4]
[328438122,1717387840265,-500.0,0.00028772,4]
[328438123,1717387840274,-1224.69,0.00028772,4]
[328438124,1717387840285,-949.65,0.00028772,4]
[328438125,1717387840294,-500.0,0.00028772,4]
[328438126,1717387840304,-1201.48,0.00028772,4]
[328438127,1717387840314,-1325.11,0.00028772,4]
[328438128,1717387840324,-500.0,0.00028772,4]
[328438129,1717387840334,-1602.68,0.00028772,4]
[328438130,1717387840344,-500.0,0.00028772,4]
[328438131,1717387840354,-500.0,0.00028772,4]